Cogmind - Beta 15 @@@ ROGUE MODE // 2025.06.02 @ 19:21:07 Player: jumpy Result: Destroyed by Y-45 Defender with Beam Rifle Performance ------------- Evolutions (2) 1000 Regions Visited (7) 1400 Robots Destroyed (59) 295 Value Destroyed (1830) 1830 Prototype IDs (0) 0 Alien Tech Used (0) 0 Bonus (341) 341 TOTAL SCORE: 4866 Bonus ------- High Alert Combat Kills 96 Follower Combat Kills 45 Entered Garrisons 200 Cogmind --------- Core Integrity 0/550 Matter 113/300 Energy 78/100 System Corruption 0% Temperature Cool (9) Movement Treading (320) Ox2 Location -8/Garrison Parts ------- > --- POWER (1) -------- (None) > --- PROPULSION (4) --- Light Treads > --- UTILITY (4) ------ High-capacity Storage Unit Visual Processing Unit > --- WEAPON (2) ------- Heavy Assault Rifle Heavy Assault Rifle > --- INVENTORY (20) --- Sensor Array Signal Interpreter Transmission Jammer Transmission Jammer Relay Coupler [NC] (25) Relay Coupler [NC] (22) Medium Laser Mining Laser Peak State ------------ > --- POWER ------------ Improved Deuterium Engine > --- PROPULSION ------- Armored Wheel Armored Wheel Armored Wheel Armored Wheel > --- UTILITY ---------- High-capacity Storage Unit Visual Processing Unit Seismic Detector Targeting Computer > --- WEAPON ----------- Heavy Particle Cannon Improved Light Cannon > --- INVENTORY -------- Improved Deuterium Engine Improved Deuterium Engine Improved Deuterium Engine Light Treads Sensor Array Signal Interpreter Transmission Jammer Transmission Jammer Medium Laser Gauss Rifle Improved Light Cannon Improved Light Cannon Grenade Launcher Mining Laser [Rating: 25] Favorites ----------- Power Ion Engine Engine Ion Engine Propulsion Light Treads Treads Light Treads Wheel Armored Wheel Utility High-capacity Storage Unit Device Seismic Detector Storage High-capacity Storage Unit Processor Targeting Computer Weapon Improved Light Cannon Energy Gun Medium Laser Energy Cannon Heavy Particle Cannon Ballistic Gun Assault Rifle Ballistic Cannon Improved Light Cannon Launcher Grenade Launcher Slashing Weapon Segregator Build | -11 -10 -9 -9 -9 -8 -8 -8 ------- Run | Yrd Mat Mat Min Exi Min Mat Gar Slots Evolved 4 | . . 2 . . . 2 . Power . | . . . . . . . . Propulsion 2 | . . 1 . . . 1 . Utility 2 | . . 1 . . . 1 . Weapon . | . . . . . . . . Parts Attached 39 | 7 4 3 . . . 10 15 Power 8 | 1 1 . . . . 1 5 Engine 8 | 1 1 . . . . 1 5 Core . | . . . . . . . . Reactor . | . . . . . . . . Propulsion 12 | 2 . 1 . . . 6 3 Treads 8 | 2 . 1 . . . 2 3 Leg . | . . . . . . . . Wheel 4 | . . . . . . 4 . Hover . | . . . . . . . . Flight . | . . . . . . . . Utility 7 | 2 1 2 . . . 2 . Device 3 | 1 . 2 . . . . . Storage 2 | 1 1 . . . . . . Processor 2 | . . . . . . 2 . Hackware . | . . . . . . . . Protection . | . . . . . . . . Artifact . | . . . . . . . . Weapon 12 | 2 2 . . . . 1 7 Energy Gun 1 | 1 . . . . . . . Energy Cannon 1 | . . . . . . 1 . Ballistic Gun 4 | 1 . . . . . . 3 Ballistic Cannon 4 | . 2 . . . . . 2 Launcher 1 | . . . . . . . 1 Special Weapon . | . . . . . . . . Impact Weapon . | . . . . . . . . Slashing Weapon 1 | . . . . . . . 1 Piercing Weapon . | . . . . . . . . Special Melee Weapon . | . . . . . . . . Unidentified Prototypes . | . . . . . . . . Parts Lost 21 | . . . . . . 5 16 Power 4 | . . . . . . . 4 Propulsion 10 | . . . . . . 3 7 Utility 3 | . . . . . . 2 1 Weapon 4 | . . . . . . . 4 Highest Loss Streak 7 | . . . . . . 3 7 To Critical Strikes . | . . . . . . . . Average Backups 13 | 4 8 14 15 15 15 18 12 Power 1 | . 1 1 1 1 1 2 1 Propulsion 2 | 1 2 4 4 4 4 4 . Utility 4 | . 2 4 5 5 5 5 5 Weapon 4 | 1 2 5 5 5 5 5 4 Tool/Special . | . . . . . . . . Unused Backups 12 | . 1 2 . . . 1 8 Power 1 | . 1 . . . . . . Propulsion 2 | . . 2 . . . . . Utility 7 | . . . . . . 1 6 Weapon 2 | . . . . . . . 2 Tool/Special . | . . . . . . . . Average Slot Usage (%) 92 | . 100 97 99 100 100 91 77 Engine 10 | . 14 11 11 11 11 9 6 Treads 25 | . 28 33 32 33 33 28 10 Wheel 4 | . . . . . . . 19 Device 14 | . 14 19 22 22 22 16 1 Storage 10 | . 14 11 11 11 11 9 9 Processor 4 | . . . . . . 9 13 Energy Gun 2 | . 13 . . . . . . Energy Cannon 1 | . . . . . . . 4 Ballistic Gun 3 | . 13 . . . . . 3 Ballistic Cannon 13 | . 1 22 22 22 22 17 6 Peak Build Rating 25 | 7 11 15 15 15 15 25 25 Average Rating 15 | 5 8 14 14 15 15 20 19 On Entrance 12 | . 7 11 15 15 15 15 25 Naked Turns . | . . . . . . . . Heaviest Build 61 | 13 54 55 55 55 55 61 61 Greatest Support 80 | 40 40 60 60 60 60 80 60 Greatest Overweight (x) 15 | . 1 . . . . 1 15 Average Overweight (x) . | . . . . . . . . Largest Inventory Capacity 20 | 8 20 20 20 20 20 20 20 Average Capacity 18 | 7 14 20 20 20 20 20 20 Most Carried 20 | 7 16 15 15 15 15 20 17 Average Carried 13 | 4 8 14 15 15 15 18 12 Final Capacity 20 | 8 20 20 20 20 20 20 20 Final Carried 16 | 7 16 15 15 15 15 14 8 Class Distribution -------------------- 88% | Mutant 11% | Scavenger-Mutant Dominant Class ---------------- Mutant | -10/Materials Mutant | -9/Materials Mutant | -9/Mines Mutant | -9/Exiles Mutant | -8/Mines Scavenger-Mutant | -8/Materials Mutant | -8/Garrison Resources | -11 -10 -9 -9 -9 -8 -8 -8 ----------- Run | Yrd Mat Mat Min Exi Min Mat Gar Matter Collected 1232 | 324 60 87 80 . . 260 421 Remotely . | . . . . . . . . Salvage Created 1591 | 155 267 25 58 . . 355 731 Parts 104 | 12 22 3 1 . . 18 48 Haulers Intercepted 2 | . 1 . . . . 1 . Recyclers Shooed . | . . . . . . . . Parts Field Recycled . | . . . . . . . . Retrieved Matter . | . . . . . . . . Parts Self-Destructed . | . . . . . . . . Prevented . | . . . . . . . . Kills | -11 -10 -9 -9 -9 -8 -8 -8 ------- Run | Yrd Mat Mat Min Exi Min Mat Gar Combat Hostiles Destroyed 46 | . 9 . 2 . . 11 24 Melee 1 | . . . . . . . 1 Guns 13 | . 9 . . . . . 4 Cannons 20 | . . . 2 . . 11 7 AOE 11 | . . . . . . . 11 Classes Destroyed 14 | 3 2 1 2 . . 4 2 Worker 1 | 1 . . . . . . . Builder 1 | . . . . . . 1 . Tunneler 4 | 4 . . . . . . . Hauler 2 | . 1 . . . . 1 . Recycler 2 | 1 1 . . . . . . Watcher 1 | . . 1 . . . . . Swarmer 16 | . 9 . . . . . 7 Saboteur 1 | . . . . . . . 1 Grunt 15 | . . . 1 . . 4 10 Brawler 2 | . . . . . . 1 1 Duelist 1 | . . . 1 . . . . Sentry 6 | . . . . . . 4 2 Hunter 3 | . . . . . . 2 1 Programmer 2 | . . . . . . . 2 Thug 1 | . . . . . . . 1 Butcher 1 | . . . . . . . 1 Best Kill Streak 6 | 3 3 1 2 . . 3 6 Combat Bots Only 6 | . 3 . 2 . . 2 6 Max Kills in Single Turn 3 | 1 1 1 1 . . 2 3 Gunslinging . | . . . . . . . . Exploded 3 | . . . . . . . 3 Melee 1 | . . . . . . . 1 Uniques/NPCs Destroyed . | . . . . . . . . Combat | -11 -10 -9 -9 -9 -8 -8 -8 -------- Run | Yrd Mat Mat Min Exi Min Mat Gar Hostile Shots Fired 292 | . 43 2 12 . . 56 179 Missed 81 | . 10 . 5 . . 15 51 Hits 211 | . 33 2 7 . . 41 128 Melee 5 | . . . 2 . . . 3 Projectile 206 | . 33 2 5 . . 41 125 Critical Strikes 17 | . 2 . 1 . . 4 10 Damage Taken 2942 | . 266 16 119 . . 621 1920 Core 580 | . 18 10 . . . 80 472 Absorbed by Shields . | . . . . . . . . Core Remaining (%) 96 | 100 92 . . . 97 . . Volleys Fired 163 | 19 30 2 7 . . 39 66 Largest 2 | 2 2 2 2 . . 2 2 Hottest 108 | 70 70 66 66 . . 66 108 Shots Fired 290 | 38 60 4 14 . . 78 96 Gun 125 | 38 60 . . . . . 27 Cannon 154 | . . 4 14 . . 78 58 Launcher 11 | . . . . . . . 11 Special . | . . . . . . . . Kinetic 202 | 19 30 4 14 . . 78 57 Thermal 77 | 19 30 . . . . . 28 Explosive 11 | . . . . . . . 11 Electromagnetic . | . . . . . . . . Robot Hit Streak 14 | 3 9 5 3 . . 13 14 Robot Miss Streak 7 | 6 6 . 1 . . 4 7 Penetration Max 1 | . . . . . . . 1 Secondary Targets . | . . . . . . . . Shots Hit Robots 187 | 19 38 1 9 . . 56 64 Core Hits 94 | 7 14 1 3 . 1 21 47 Critical Kills 1 | . . . . . . . 1 Critical Parts Destroyed . | . . . . . . . . Critical Strikes 9 | . 3 . . . . 3 3 Burn 3 | . 3 . . . . . . Meltdown 1 | . . . . . . . 1 Blast 5 | . . . . . . 3 2 Melee Attacks 7 | . . . . . . . 7 Thermal 7 | . . . . . . . 7 Impact . | . . . . . . . . Slashing . | . . . . . . . . Piercing . | . . . . . . . . Sneak Attacks . | . . . . . . . . Combat Hostiles . | . . . . . . . . Follow-up Attacks . | . . . . . . . . Damage Inflicted 4345 | 238 488 20 193 . 18 1151 2237 Guns 1143 | 238 476 . . . . . 429 Cannons 2247 | . . 20 187 . . 1138 902 Explosions 906 | . . . . . . . 906 Melee . | . . . . . . . . Ramming 49 | . 12 . 6 . 18 13 . Kinetic 2632 | 152 229 20 187 . . 1138 906 Thermal 758 | 86 247 . . . . . 425 Explosive 906 | . . . . . . . 906 Electromagnetic . | . . . . . . . . Impact . | . . . . . . . . Slashing . | . . . . . . . . Piercing . | . . . . . . . . Highest Corruption . | . . . . . . . . Average Corruption . | . . . . . . . . Corruption Purged . | . . . . . . . . Corruption Blocked . | . . . . . . . . Overload Shots . | . . . . . . . . Overflow Damage 27 | . . . . . . . 27 Projectiles . | . . . . . . . . Explosions 27 | . . . . . . . 27 Melee . | . . . . . . . . Knockbacks 16 | . . . 2 . . 9 5 Impact . | . . . . . . . . Kinetic 16 | . . . 2 . . 9 5 Secondary . | . . . . . . . . Self-Inflicted Damage 73 | . . . . . . . 73 Shots 3 | . . . . . . . 3 Rammed 11 | . 4 . 1 . 2 4 . Targets Rammed 11 | . 4 . 1 . 2 4 . Kicked . | . . . . . . . . Crushed . | . . . . . . . . Highest Temperature 327 | 27 72 . 16 . . 49 327 Average Temperature 41 | 11 25 . 9 . . 19 86 Received Heat Transfer 1146 | . . . 30 . . 252 864 Siege Activations . | . . . . . . . . Martial Activations . | . . . . . . . . Shielding Activations . | . . . . . . . . Robots Disrupted . | . . . . . . . . Combat Hostiles . | . . . . . . . . Robots Corrupted . | . . . . . . . . Combat Hostiles . | . . . . . . . . Parts Fried . | . . . . . . . . Impact Corruptions . | . . . . . . . . Robots Melted 1 | . . . . . . . 1 Combat Hostiles 1 | . . . . . . . 1 Parts Melted 3 | . 2 . . . . . 1 Heat Transferred 1850 | 259 962 . . . . . 629 Parts Sabotaged 9 | . . . . . . . 9 Parts Stolen . | . . . . . . . . Parts Stripped . | . . . . . . . . Power Chain Reactions . | . . . . . . . . Alert | -11 -10 -9 -9 -9 -8 -8 -8 ------- Run | Yrd Mat Mat Min Exi Min Mat Gar Maximum Alert Level 2 | . . . . . . . 2 Low Security (%) 78 | 100 100 100 100 . 100 100 20 Level 1 6 | . . . . . . . 24 Level 2 15 | . . . . . . . 55 Level 3 . | . . . . . . . . Level 4 . | . . . . . . . . Level 5 . | . . . . . . . . High Security . | . . . . . . . . Max Security . | . . . . . . . . Peak Influence 602 | 10 141 37 41 . . 93 602 Initial 51 | . . 20 6 . . . 51 Average 125 | 1 68 13 5 . . 35 375 Influence Increases 1417 | 30 258 52 51 . . 335 691 Destroy 0b10 Robot/C 940 | . 180 . 40 . . 220 500 Destroy 0b10 Robot/NC 55 | 30 10 5 . . . 10 . Destroy Leader 156 | . 32 2 10 . . 82 30 Allied During Kill 27 | . . . . . . . 27 Successful Hack 29 | . 5 . . . . 3 21 Disable Machine 30 | . . 15 . . . 15 . Anti-Garrison Action 50 | . . . . . . . 50 Destroy Structure 55 | . 1 . 1 . . 5 48 Lose Combat Pursuer 75 | . 30 30 . . . . 15 Influence Decreases 855 | 30 208 85 68 . . 256 208 Entered New Map 69 | . . 30 11 . . . 28 Time Decay 565 | 30 208 55 57 . . 215 . Lost Part 201 | . . . . . . 41 160 Lost Ally 20 | . . . . . . . 20 Squads Dispatched 2 | . . . . . . 2 . Investigation . | . . . . . . . . Extermination . | . . . . . . . . Reinforcement . | . . . . . . . . Assault . | . . . . . . . . Garrison 2 | . . . . . . 2 . Intercept . | . . . . . . . . Searches Triggered . | . . . . . . . . Construction Impeded . | . . . . . . . . Haulers Reinforced . | . . . . . . . . Active Scanning Responses . | . . . . . . . . Cargo Convoy Interrupts . | . . . . . . . . Stealth | -11 -10 -9 -9 -9 -8 -8 -8 --------- Run | Yrd Mat Mat Min Exi Min Mat Gar Distress Signals 4 | . 1 1 . . . 2 . Communications Jammed . | . . . . . . . . Distress Signals . | . . . . . . . . Times Spotted 73 | . 18 1 2 . . 19 33 Peak Tracking Total 8 | . 6 2 2 . . 6 8 Tactical Retreats 3 | . 1 1 . . . . 1 Traps | -11 -10 -9 -9 -9 -8 -8 -8 ------- Run | Yrd Mat Mat Min Exi Min Mat Gar Traps Triggered 7 | . . . . . . . 7 Indirectly . | . . . . . . . . Trap Hack Attempts . | . . . . . . . . Triggered . | . . . . . . . . Disarmed . | . . . . . . . . Reprogrammed . | . . . . . . . . Reused . | . . . . . . . . Traps Extracted . | . . . . . . . . Installed . | . . . . . . . . Triggered . | . . . . . . . . Machines | -11 -10 -9 -9 -9 -8 -8 -8 ---------- Run | Yrd Mat Mat Min Exi Min Mat Gar Machines Disabled 3 | . . 1 . . . 1 1 Max in Single Turn 1 | . . 1 . . . 1 1 Garrison Relay 2 | . . . . . . . 2 Machines Repaired . | . . . . . . . . Machines Dismantled . | . . . . . . . . Machines Sabotaged . | . . . . . . . . Overloaded Fab Kills . | . . . . . . . . Hacking | -11 -10 -9 -9 -9 -8 -8 -8 --------- Run | Yrd Mat Mat Min Exi Min Mat Gar Machines Accessed 13 | . 2 . . 4 . 4 3 Terminals 8 | . 2 . . . . 3 3 Fabricators . | . . . . . . . . Repair Stations . | . . . . . . . . Recycling Units . | . . . . . . . . Scanalyzers . | . . . . . . . . Garrison Access 1 | . . . . . . 1 . Total Hacks 19 | . 3 . . 4 . 7 5 Successful 13 | . 3 . . 4 . 4 2 Failed 6 | . . . . . . 3 3 Catastrophic 1 | . . . . . . . 1 Database Lockouts . | . . . . . . . . Manual 9 | . 3 . . . . 6 . Terminals 14 | . 3 . . . . 6 5 Fabricators . | . . . . . . . . Repair Stations . | . . . . . . . . Recycling Units . | . . . . . . . . Scanalyzers . | . . . . . . . . Garrison Access 1 | . . . . . . 1 . Terminal Hacks 6 | . . . . 4 . . 2 Record 4 | . . . . 4 . . . Open Door 1 | . . . . . . . 1 Emergency Access Points 1 | . . . . . . . 1 Fabricator Hacks . | . . . . . . . . Repair Station Hacks . | . . . . . . . . Recycling Unit Hacks . | . . . . . . . . Scanalyzer . | . . . . . . . . Garrison Access Hacks 1 | . . . . . . 1 . Unlock Access 1 | . . . . . . 1 . Unauthorized Hacks 6 | . 3 . . . . 3 . Terminals 6 | . 3 . . . . 3 . Botnet 2 | . 1 . . . . 1 . Skim 4 | . 2 . . . . 2 . Fabricators . | . . . . . . . . Repair Stations . | . . . . . . . . Recycling Units . | . . . . . . . . Scanalyzers . | . . . . . . . . Garrison Access . | . . . . . . . . Data Cores Recovered . | . . . . . . . . Used . | . . . . . . . . Hacking Detections 6 | . . . . . . 3 3 Full Trace Events . | . . . . . . . . Feedback Events . | . . . . . . . . Feedback Blocked . | . . . . . . . . Robot Schematics Acquired . | . . . . . . . . Robots Built . | . . . . . . . . Authchips . | . . . . . . . . Time . | . . . . . . . . Total Robot Build Rating . | . . . . . . . . Part Schematics Acquired . | . . . . . . . . Parts Built . | . . . . . . . . Authchips . | . . . . . . . . Time . | . . . . . . . . Total Part Build Rating . | . . . . . . . . Parts Repaired . | . . . . . . . . Time . | . . . . . . . . Parts Recycled . | . . . . . . . . Recycled Matter . | . . . . . . . . Retrieved Matter . | . . . . . . . . Retrieved Components . | . . . . . . . . Parts Scanalyzed . | . . . . . . . . Part Schematics Acquired . | . . . . . . . . Parts Damaged . | . . . . . . . . Bothacking | -11 -10 -9 -9 -9 -8 -8 -8 ------------ Run | Yrd Mat Mat Min Exi Min Mat Gar Used RIF Installer . | . . . . . . . . Robots Hacked . | . . . . . . . . Non-combat . | . . . . . . . . Combat . | . . . . . . . . Robot Hacks Applied . | . . . . . . . . Relay Couplers Released 9 | . . . . . . . 9 Machine Destruction 9 | . . . . . . . 9 Fabnet Peak Effective % . | . . . . . . . . Robots Rewired 3 | . . . . . . . 3 Allies Hacked 1 | . . . . . . . 1 Hacks Repelled . | . . . . . . . . Allies | -11 -10 -9 -9 -9 -8 -8 -8 -------- Run | Yrd Mat Mat Min Exi Min Mat Gar Total Allies 3 | . . . . . . . 3 Largest Group 3 | . . . . . . . 3 Highest-Rated Group 87 | . . . . . . . 87 Highest-Rated Ally 31 | . . . . . . . 31 Total Orders . | . . . . . . . . Ally Attacks 8 | . . . . . . . 8 Total Damage 129 | . . . . . . . 129 Kills 1 | . . . . . . . 1 Allies Corrupted . | . . . . . . . . Allies Melted . | . . . . . . . . Intel | -11 -10 -9 -9 -9 -8 -8 -8 ------- Run | Yrd Mat Mat Min Exi Min Mat Gar Active Infowar (turns) 3496 | 37 605 155 366 641 218 630 844 Optics 847 | . . . . . . 3 844 Terrain 1925 | . . 132 366 641 218 568 . Seismic 2786 | 37 605 155 366 641 218 612 152 Robot Analysis Total . | . . . . . . . . Derelict Logs Recovered . | . . . . . . . . Drone Launches . | . . . . . . . . Drone Recoveries . | . . . . . . . . Exploration | -11 -10 -9 -9 -9 -8 -8 -8 ------------- Run | Yrd Mat Mat Min Exi Min Mat Gar Turns Passed 3723 | 264 605 155 366 641 218 630 844 Spaces Moved 1875 | 122 244 81 213 401 135 277 402 Core 5 | 4 . . . . . . 1 Treads 1615 | 118 244 81 213 401 135 274 149 Legs . | . . . . . . . . Wheels 255 | . . . . . . 3 252 Hover . | . . . . . . . . Flight . | . . . . . . . . Fastest Speed 50 | 50 160 160 160 160 160 105 105 Average Speed 158 | 156 196 160 160 160 160 164 128 Slowest Speed 800 | 160 240 160 160 160 160 240 800 Overloaded Moves . | . . . . . . . . Propulsion Burnouts . | . . . . . . . . Robots Hopped . | . . . . . . . . Potential Cave-ins . | . . . . . . . . Cave-ins Triggered . | . . . . . . . . Exploration Rate (%) 40 | 6 54 10 40 88 49 31 48 Regions Visited 7 Branch Regions 3 Pre-discovered Areas . | . . . . . . . . Known Exits Taken 1 | . . . . . . 1 . Unknown Exits Taken 6 | 1 1 1 1 1 1 . . Scrap Searched 1 | . . . 1 . . . . Spaces Dug . | . . . . . . . . Terrain Destroyed 48 | . . . 1 . . 2 45 Melee . | . . . . . . . . Projectile 4 | . . . 1 . . 2 1 AOE 44 | . . . . . . . 44 Terrain Rammed . | . . . . . . . . Walls Destroyed . | . . . . . . . . Machines Disabled . | . . . . . . . . Actions | -11 -10 -9 -9 -9 -8 -8 -8 --------- Run | Yrd Mat Mat Min Exi Min Mat Gar Total 2310 | 154 307 103 223 400 136 373 614 Wait 72 | . 15 13 2 . . 30 12 Move 1868 | 121 243 80 212 400 134 276 402 Hop . | . . . . . . . . Pick Up 33 | 7 9 3 . . . 8 6 Fast Attach 18 | 7 . . 1 . . 1 9 Attach 21 | . . 2 . . . 8 11 Detach 1 | . . . . . . 1 . Swap 9 | . 4 1 . . . 2 2 Drop 10 | . 2 2 . . . 4 2 Fire 163 | 19 30 2 7 . . 39 66 Melee 7 | . . . . . . . 7 Ram . | . . . . . . . . Kick . | . . . . . . . . Crush 11 | . 4 . 1 . 2 4 . Escape Stasis 48 | . . . . . . . 48 Rewire 49 | . . . . . . . 49 Trap . | . . . . . . . . Miscellaneous . | . . . . . . . . Route ------- -11/Scrapyard -10/Materials (discovered 4 exits: [*Mat x3] / [*Min]) -9/Materials -9/Mines -9/Exiles -8/Mines -8/Materials -8/Garrison (discovered 1 exit: [*Mat]) History --------- Turn | Location | Event 17 | -11/Scrapyard | Discovered new exit (range 16) 265 | -11/Scrapyard | Entered Materials 317 | -10/Materials | Build established: Mutant 352 | -10/Materials | Discovered new exit (range 6) 440 | -10/Materials | Discovered new exit (range 10) 587 | -10/Materials | Discovered new exit (range 8) 763 | -10/Materials | Discovered new exit (range 15) 870 | -10/Materials | Entered another Materials area 870 | -9/Materials | Evolved 2 slots: Propulsion x1, Utility x1 1014 | -9/Materials | Discovered new exit (range 5) 1025 | -9/Materials | Entered Mines 1383 | -9/Mines | Deemed a non-threat by the Exiles lab entrance 1383 | -9/Mines | Discovered new exit (range 5) 1391 | -9/Mines | Entered Exiles 1391 | -9/Exiles | Found Exiles lab abandoned 2011 | -9/Exiles | Discovered new exit (range 14) 2032 | -9/Exiles | Entered Mines 2231 | -8/Mines | Discovered new exit (range 13) 2250 | -8/Mines | Entered Materials 2250 | -8/Materials | Evolved 2 slots: Propulsion x1, Utility x1 2666 | -8/Materials | Build established: Scavenger-Mutant 2758 | -8/Materials | Garrison activated, responded to threat 2852 | -8/Materials | Lost 3 parts (2n1u) 2879 | -8/Materials | Identified exit to Garrison 2880 | -8/Materials | Entered Garrison 2950 | -8/Garrison | Garrison Relay disabled 2966 | -8/Garrison | Triggered checkpoint 3026 | -8/Garrison | Triggered checkpoint 3128 | -8/Garrison | Build established: Mutant 3156 | -8/Garrison | Discovered new exit (range 12) 3256 | -8/Garrison | Triggered checkpoint 3364 | -8/Garrison | Core integrity fell below 50% 3390 | -8/Garrison | Garrison Relay disabled 3391 | -8/Garrison | Core integrity fell below 20% 3415 | -8/Garrison | Lost 7 parts (2p4n1w) 3540 | -8/Garrison | Triggered checkpoint 3620 | -8/Garrison | Triggered checkpoint 3655 | -8/Garrison | Triggered checkpoint 3724 | -8/Garrison | Destroyed by Y-45 Defender with Beam Rifle Last Messages --------------- 03684_ B-36 Bruiser destroyed. 03687_ Slug penetrates Wall. 03690_ Slug penetrates G-47 Trooper. 03690_ G-47 Trooper Imp. Heat Sink blasted off. 03690_ G-47 Trooper knocked back. 03693_ Slug penetrates Wall. 03693_ G-47 Trooper knocked back. 03696_ Slug penetrates Wall. 03699_ Slug penetrates G-47 Trooper. 03699_ G-47 Trooper knocked back. 03702_ Slug penetrates G-47 Trooper. 03702_ G-47 Trooper Aluminum Leg blasted off. 03702_ G-47 Trooper knocked back. 03705_ Slug penetrates G-47 Trooper. 03705_ G-47 Trooper destroyed. 03711_ Slug penetrates Wall. 03712_ Lgt. Treads destroyed. 03713_ Imp. Light Cannon destroyed. 03714_ Slug penetrates Y-45 Defender. 03716_ Gauss Rifle destroyed. Map ----- +----------------------------------------------------+ | ????????????# ######## #??????????????????????? | | ????????????# ## ## #??????????????????????? | | ???????????## ## ## #??????????????????????? | | ???????????# % #??????????????????????? | | ???????????+ #??????????????????????? | | ???????????# #??????????????????????? | | ???????????# ## ## #??????????????????????? | | ???????????# ## ## ###????????????????????? | | ???????????" ^ #????????????????????? | | ???????????" ^ #????????????????????? | | ???????????" ^ +????????????????????? | | ???????????" ^ ?????????????????????? | | ???????????# ## ## #??????????????????????? | | ???######### ## ## #######+##?????????????? | | ?? #?????????????? | | ??? #?????????????? | | ?????##+#### %% ###+### #?????????????? | | ???????????## ## [ ## ##??????????????????????? | | ????????????# ?#% ! ## #???????????????????????? | | ????????????# ?###+### +??????+????????????????? | | ????+???????+ ????????#% #???????????????????????? | | ????????????#?????????# #???????????????????????? | | ??????????????????????# #???????????????????????? | | ?????????+????????????# #???????????????????????? | | ??????????????????????#YY###+#### #?????????????? | | ??????????????????????+ @ %!g=% ??????? | | ?????????++???????????# !=*%% ??????? | | ??????????????????????########### #####?????????? | | ?????????????????????????????????????????????????? | | ?+???????????????????????????????????????????????? | | ?????????????????????????????????????????????????? | | ?????????????????????????????????????????????????? | | ?????????????????????????????????????????????????? | | ???????????????????????????????/?????????????????? | | ?????????????????????????????????????????????????? | | ?????????????????????????????????????????????????? | | ?????????????????????????????????????????????????? | | ???????????????????????????????+?????????????????? | | ????????????????????????????????+????????????????? | | ?????????????????????????????????????????????????? | | ?????????????????????????????????????????????????? | | ?????????????????????????????????????????????????? | | ?????????????????????????????????????????????????? | | ?????????????????????????????????????????????????? | | ?????????????????????????????????????????????????? | | ?????????????????????????????????????????????????? | | ?????????????????????????????????????????????????? | | ?????????????????????????????????????????????????? | | ?????????????????????????????????????????????????? | | ?????????????????????????????????????????????????? | +----------------------------------------------------+ Best States ------------- Heat Dissipation 31 Energy Generation 18 Energy Capacity 290 Matter Stores 300 Matter Capacity 300 Sight Range 18 Terrain Scan Range 16 Terrain Scan Density 10 Evasion (%) 40 Targeting Accuracy 5 Recoil Reduction 4 Item Schematics ----------------- None Robot Schematics ------------------ None Fabricated ------------ Nothing Repaired ---------- Nothing Alien Tech Used ----------------- None Achievements -------------- None Challenges ------------ None Game ------ Seed BurstEnergyCompressor Manual? 0 Play Time 00:21:25 Cumulative 119.3 hours Start 2025.06.02 @ 18:58:48 End 2025.06.02 @ 19:21:07 Sessions 1 Manual Loads 0 Difficulty Rogue Special Mode None Game No. 307 Rogue 307 Adventurer 0 Explorer 0 Win Type - Total 2 Types 2/0/0/0/0/0/0/0/0/0 Lore% 60 Gallery% 52 Achievement% 45 Wizard Run 0 Options --------- Layout 0 ASCII 0 Keyboard 0 Movement Numpad Keybinds 0 Fullscreen 2 Font 18/Terminus Map View 76x50 Zoom Use 0% Tactical HUD 1 Map Filters NONE Filters NONE Steam 1 RUN: a03c60ea-d21b-47db-bef6-040bc93035f3